bitfinex/quotes_SOLUSD_20220226
["timestamp","ask_amount","ask_price","bid_price","bid_amount"]
[1645851313159,53.37126493,92.969,92.907,2.83228465]
[1645851313556,53.37126493,92.969,92.906,46.2695]
[1645851313756,53.37126493,92.969,92.907,2.76195231]
[1645851315968,16.146,92.99,92.907,2.76195231]
[1645851316762,24.5163,93.008,92.907,2.76195231]
[1645851316961,50.06935112,92.989,92.907,2.76195231]
[1645851317161,50.06935112,92.989,92.907,5.62487658]
[1645851318565,16.1425,93.01,92.908,106.9]
[1645851318864,4.301,93.028,92.912,2.84728292]
[1645851319065,4.301,93.029,92.919,2.27097218]
[1645851319264,4.301,93.029,92.93,15.51]
[1645851319465,16.1388,93.03,92.932,2.33567699]
[1645851319664,59.83008119,93.029,92.932,2.33567699]
[1645851320065,4.301,93.028,92.932,2.33567699]
[1645851320868,2.41893914,93.028,92.932,2.33567699]
[1645851322972,16.1405,93.02,92.932,2.33567699]
[1645851323174,2.41893914,93.028,92.932,2.33567699]
[1645851323175,4.301,93.019,92.932,2.33567699]
[1645851323375,2.41893914,93.019,92.932,2.33567699]
[1645851323572,6.71993914,93.018,92.932,2.33567699]
[1645851323773,2.41893914,93.018,92.932,2.33567699]
[1645851323973,2.41893914,93.017,92.932,2.33567699]
[1645851324374,48.5612185,93.015,92.932,2.33567699]
[1645851324574,16.1426,93.01,92.932,2.33567699]
[1645851325975,48.5612185,93.015,92.932,2.33567699]
[1645851326375,2.41893914,93.014,92.932,2.33567699]
[1645851327578,16.1423,93.01,92.932,2.33567699]
[1645851327976,18.56123914,93.01,92.932,2.33567699]
[1645851328977,16.1423,93.01,92.932,2.33567699]
[1645851330181,48.5612185,93.015,92.932,2.33567699]
[1645851336684,2.41893914,93.044,92.932,2.33567699]
[1645851336983,2.41893914,93.044,92.934,2.9904337]
[1645851337687,53.78362974,93.043,92.934,2.9904337]
[1645851337884,53.78362974,93.043,92.935,2.86292427]
[1645851338085,53.78362974,93.043,92.94,15.51]
[1645851338287,53.78362974,93.043,92.942,2.6639937]
[1645851338895,53.78362974,93.043,92.944,2.69532739]
[1645851340195,2.41893914,93.042,92.944,2.69532739]
[1645851341598,16.137,93.04,92.944,2.69532739]
[1645851342097,6.71993914,93.039,92.944,2.69532739]
[1645851342502,2.41893914,93.038,92.944,2.69532739]
[1645851344014,16.137,93.04,92.944,2.69532739]
[1645851350623,16.1402,93.02,92.943,22.5027]
[1645851350828,54.868917,93.019,92.943,22.5027]
[1645851351025,57.28785614,93.019,92.919,2.86352148]
[1645851351225,2.41893914,93.018,92.92,23.611]
[1645851351423,4.301,93.017,92.921,2.95583464]
[1645851351824,27.35673914,93.016,92.921,2.95583464]
[1645851352025,4.301,93.015,92.921,2.95583464]
[1645851352224,6.71993914,93.015,92.921,2.95583464]
[1645851352425,16.1433,93.0,92.921,2.95583464]
[1645851352624,60.33507358,92.999,92.92,23.611]
[1645851352826,62.75401272,92.999,92.92,23.611]
[1645851353126,2.41893914,92.998,92.92,23.611]
[1645851357031,3.7746111,92.998,92.92,23.611]
[1645851357531,16.1458,92.99,92.92,23.611]
[1645851358130,18.56473914,92.99,92.92,23.611]
[1645851359332,34.85803914,92.99,92.92,23.611]
[1645851360134,1.57891224,92.989,92.92,23.611]
[1645851361533,18.56473914,92.99,92.92,23.611]
[1645851362833,18.56473914,92.99,92.921,2.28624572]
[1645851363433,16.1458,92.99,92.921,2.28624572]
[1645851366838,18.56143914,93.01,92.921,2.28624572]
[1645851367038,4.301,93.016,92.921,106.9]
[1645851367237,22.9961,93.017,92.922,2.88566702]
[1645851367437,22.9961,93.017,92.923,4.301]
[1645851368238,22.9961,93.017,92.924,2.58704579]
[1645851369238,22.9961,93.017,92.924,109.48704579]
[1645851369439,22.9961,93.017,92.926,106.9]
[1645851369643,22.9961,93.017,92.931,106.9]
[1645851369843,16.1391,93.03,92.934,2.51739841]
[1645851370042,16.1391,93.03,92.936,106.9]
[1645851370242,16.1391,93.03,92.937,3.06020089]
[1645851370442,16.1391,93.03,92.938,106.9]
[1645851370642,44.59777308,93.029,92.939,2.33840364]
[1645851371043,44.59777308,93.029,92.94,4.301]
[1645851373245,44.59777308,93.029,92.941,2.86292427]
[1645851373446,44.59777308,93.029,92.943,106.9]
[1645851373644,44.59777308,93.029,92.944,2.4303499]
[1645851373846,44.59777308,93.029,92.944,5.29327417]
[1645851374046,4.301,93.054,92.946,106.9]
[1645851374248,23.3598,93.076,92.961,109.33978995]
[1645851374446,23.3598,93.076,92.97,15.51]
[1645851374653,23.3598,93.076,92.972,2.38632044]
[1645851374852,23.3598,93.076,92.974,106.9]
[1645851375048,50.51068587,93.075,92.975,2.29445348]
[1645851375246,50.51068587,93.075,92.976,4.299]
[1645851375448,50.51068587,93.075,92.98,15.51]
[1645851375646,50.51068587,93.075,92.981,113.64572904]
[1645851375848,50.51068587,93.075,92.982,2.75096186]
[1645851376047,50.51068587,93.075,92.983,4.299]
[1645851376246,50.51068587,93.075,92.984,2.58236906]
[1645851376446,50.51068587,93.075,92.985,4.299]
[1645851376647,50.51068587,93.075,92.986,2.25255735]
[1645851376848,50.51068587,93.075,92.987,4.299]
[1645851377248,50.51068587,93.075,92.989,2.39196666]
[1645851377648,50.51068587,93.075,92.99,2.86292427]
[1645851377849,50.51068587,93.075,92.99,18.37292427]
[1645851378148,50.51068587,93.075,92.991,5.16946608]
[1645851378548,50.51068587,93.075,92.992,2.86292427]
[1645851384456,5.73693771,93.13,92.995,2.41923589]
[1645851384755,23.8497,93.129,93.011,106.9]
[1645851384978,23.8497,93.129,93.021,2.42939175]
[1645851385355,59.31311973,93.097,93.022,2.86292427]
[1645851385860,59.31311973,93.097,93.025,2.67093739]
[1645851386260,59.31311973,93.097,93.026,2.86292427]
[1645851391571,2.42717338,93.096,93.023,23.6424]
[1645851393693,2.42717338,93.096,93.024,2.92651835]
[1645851393893,2.42717338,93.096,93.023,23.6424]
[1645851396496,2.42717338,93.096,93.024,2.65171784]
[1645851397398,65.32311973,93.097,93.024,2.65171784]
[1645851397600,59.31311973,93.097,93.024,2.65171784]
[1645851402501,59.31311973,93.097,93.023,23.6424]
[1645851406613,59.31311973,93.097,93.024,2.41848911]
[1645851409319,59.31311973,93.097,93.024,6.71648911]
[1645851409518,59.31311973,93.097,93.024,2.41848911]
[1645851410320,1.81265295,93.096,93.023,23.6424]
[1645851413154,2.42716892,93.095,93.023,23.6424]
[1645851413553,1.81265295,93.096,93.023,23.6424]
[1645851414153,4.298,93.095,93.023,23.6424]
[1645851414354,6.11065295,93.096,93.023,23.6424]
[1645851415957,1.81265295,93.096,93.023,23.6424]
[1645851418758,59.31311973,93.097,93.023,23.6424]
[1645851418960,59.31311973,93.097,93.024,2.37609434]
[1645851420362,59.31311973,93.097,93.023,23.6424]
[1645851422566,59.31311973,93.097,93.024,2.94258468]
[1645851428269,59.31311973,93.097,93.024,109.84258468]
[1645851428470,59.31311973,93.097,93.026,106.9]
[1645851428671,24.5052,93.134,93.027,2.27909766]
[1645851428874,23.4405,93.13,93.029,106.9]
[1645851429069,23.4405,93.13,93.03,3.1245644]
[1645851429469,23.4405,93.13,93.031,106.9]
[1645851429670,57.22199331,93.129,93.032,2.86330588]
[1645851429870,57.22199331,93.129,93.042,2.7726133]
[1645851430093,57.22199331,93.129,93.045,2.5610203]
[1645851430492,57.22199331,93.129,93.046,2.86292427]
[1645851432695,57.22199331,93.129,93.051,106.9]
[1645851432894,57.22199331,93.129,93.052,3.04986306]
[1645851439702,57.22199331,93.129,93.053,2.86292427]
[1645851440102,22.5479,93.157,93.055,106.9]
[1645851440301,22.5479,93.157,93.072,2.84243661]
[1645851440501,22.5479,93.157,93.075,2.62146644]
[1645851440701,22.5479,93.157,93.081,106.9]
[1645851440903,22.5479,93.157,93.082,2.40157885]
[1645851441102,51.74195534,93.156,93.082,2.40157885]
[1645851441401,51.74195534,93.156,93.083,2.86292427]
[1645851441601,51.74195534,93.156,93.085,106.9]
[1645851441801,51.24195534,93.156,93.086,2.39997854]
[1645851444305,64.21,93.155,93.084,23.5999]
[1645851444908,4.295,93.154,93.084,23.5999]
[1645851446210,64.21,93.153,93.058,14.54749367]
[1645851446410,1.53558191,93.152,93.059,23.864]
[1645851446610,4.296,93.151,93.059,23.864]
[1645851447012,64.21,93.149,93.059,23.864]
[1645851447210,64.21,93.145,93.041,14.54749367]
[1645851447412,5.7486936,93.148,93.035,22.9309859]
[1645851447413,64.21,93.139,93.035,22.9309859]
[1645851447611,106.9,93.133,93.016,2.29011136]
[1645851447810,64.21,93.124,92.999,2.42070438]
[1645851448012,64.21,93.099,92.999,2.42070438]
[1645851448210,50.21182895,93.098,92.999,2.42070438]
[1645851448412,1.79815742,93.096,92.999,2.42070438]
[1645851449514,64.21,93.089,92.992,22.9309859]
[1645851449711,1.72507876,93.088,92.992,22.9309859]
[1645851450612,109.26231355,93.079,92.992,22.9309859]
[1645851450811,1.82883438,93.078,92.992,22.9309859]
[1645851451812,115.93830941,93.079,92.993,2.2865003]
[1645851452016,107.49830941,93.079,92.993,2.2865003]
[1645851454919,16.1321,93.07,92.993,2.2865003]
[1645851455116,64.21,93.069,92.984,2.72006729]
[1645851456616,65.8382645,93.069,92.984,2.72006729]
[1645851457018,64.21,93.069,92.984,2.72006729]
[1645851457220,64.21,93.069,92.985,2.86292427]
[1645851462830,1.65634958,93.068,92.985,2.86292427]
[1645851463630,1.65634958,93.068,92.983,22.6176]
[1645851463850,1.78226532,93.066,92.983,22.6176]
[1645851464049,64.21,93.064,92.983,22.6176]
[1645851465750,68.509,93.064,92.983,22.6176]
[1645851466752,64.21,93.064,92.983,22.6176]
[1645851468951,64.21,93.064,92.984,2.80668434]
[1645851471353,64.21,93.064,92.985,2.86292427]
[1645851472355,52.32243752,93.065,92.985,2.86292427]
[1645851472558,52.32243752,93.065,92.987,106.9]
[1645851472755,52.32243752,93.065,92.991,106.9]
[1645851472957,52.32243752,93.065,92.992,2.40815304]
[1645851473557,52.32243752,93.065,92.993,2.86292427]
[1645851473757,52.32243752,93.065,92.993,5.92833096]
[1645851474057,52.32243752,93.065,92.994,5.14573538]
[1645851474258,52.32243752,93.065,92.996,2.82903461]
[1645851474460,52.32243752,93.065,93.0,15.51]
[1645851474659,52.32243752,93.065,93.001,2.53231054]
[1645851475060,52.32243752,93.065,93.001,5.39523481]
[1645851475260,52.32243752,93.065,93.002,2.86292427]
[1645851481467,20.4243,93.11,93.004,106.9]
[1645851481665,23.9146,93.109,93.006,106.9]
[1645851481865,23.9146,93.109,93.021,106.9]
[1645851482066,23.9146,93.109,93.023,106.9]
[1645851482264,23.9146,93.109,93.024,2.44586734]
[1645851482464,58.89459712,93.108,93.024,2.44586734]
[1645851482665,58.89459712,93.108,93.025,2.86292427]
[1645851482966,58.89459712,93.108,93.031,2.28239549]
[1645851483265,58.89459712,93.108,93.032,2.86292427]
[1645851483466,58.89459712,93.108,93.033,22.6181]
[1645851483666,58.89459712,93.108,93.034,2.47985258]
[1645851485367,58.89459712,93.108,93.035,2.86292427]
[1645851487569,58.89459712,93.108,93.034,2.47985258]
[1645851491674,58.89459712,93.108,93.034,5.34277685]
[1645851492979,58.89459712,93.108,93.034,112.24277685]
[1645851493178,58.89459712,93.108,93.035,3.09652882]
[1645851493581,24.4778,93.131,93.037,106.9]
[1645851493781,16.3579,93.161,93.036,66.28144167]
[1645851493782,22.9355,93.149,93.052,2.40662198]
[1645851493983,22.9355,93.149,93.055,2.64835794]
[1645851493984,64.21,93.148,93.055,2.64835794]
[1645851494182,64.21,93.148,93.071,2.83752649]
[1645851494383,64.21,93.148,93.061,109.94307008]
[1645851494583,22.9355,93.149,93.062,2.68898339]
[1645851494584,64.21,93.146,93.062,2.68898339]
[1645851494783,59.55930769,93.147,93.062,2.68898339]
[1645851494784,59.55930769,93.147,93.063,106.9]
[1645851494983,59.55930769,93.147,93.064,2.296132]
[1645851495183,59.55930769,93.147,93.066,106.9]
[1645851495385,59.55930769,93.147,93.08,15.51]
[1645851495584,59.55930769,93.147,93.081,27.42716468]
[1645851495786,59.55930769,93.147,93.082,2.70605928]
[1645851498409,64.21,93.146,93.082,2.70605928]
[1645851498608,64.21,93.146,93.081,24.8401]
[1645851500510,4.15089675,93.145,93.068,23.9202]
[1645851500709,64.21,93.144,93.068,23.9202]
[1645851500908,1.44626309,93.143,93.068,23.9202]
[1645851501111,3.87619975,93.143,93.068,23.9202]
[1645851501512,64.21,93.139,93.068,23.9202]
[1645851501810,1.7681555,93.138,93.068,23.9202]
[1645851502210,1.56491578,93.136,93.068,23.9202]
[1645851502611,1.56491578,93.136,93.051,24.1508]
[1645851503813,64.21,93.139,93.052,2.32897561]
[1645851508522,64.21,93.139,93.053,2.86292427]
[1645851509321,23.1664,93.145,93.055,106.9]
[1645851509621,23.1664,93.145,93.07,15.51]
[1645851509823,23.1664,93.145,93.071,26.94026906]
[1645851510023,23.1664,93.145,93.072,3.0111939]
[1645851514726,64.21,93.144,93.072,3.0111939]
[1645851516827,64.21,93.144,93.071,24.0284]
[1645851518928,64.21,93.144,93.071,26.77038939]
[1645851519127,64.21,93.144,93.072,3.01765584]
[1645851528736,64.21,93.144,93.071,24.0284]
[1645851529639,71.13,93.144,93.071,24.0284]
[1645851539267,64.21,93.144,93.071,24.0284]
[1645851540377,64.21,93.144,93.072,2.56746328]
[1645851540973,23.1664,93.145,93.072,2.56746328]
[1645851541171,16.1145,93.17,93.073,2.86292427]
[1645851541371,64.21,93.173,93.074,106.9]
[1645851541572,64.21,93.173,93.075,2.42118171]
[1645851541770,24.2477,93.172,93.091,106.9]
[1645851541970,24.2477,93.172,93.092,27.20451131]
[1645851542171,24.2477,93.172,93.093,2.96040346]
[1645851542972,46.46225737,93.171,93.093,2.96040346]
[1645851543174,64.21,93.17,93.092,24.539]
[1645851543373,64.21,93.17,93.093,2.42275681]
[1645851548579,46.46225737,93.171,93.093,2.42275681]
[1645851548883,46.46225737,93.171,93.095,106.9]
[1645851549084,46.46225737,93.171,93.096,3.11668451]
[1645851549284,1.68755716,93.229,93.111,106.9]
[1645851549479,5.88,93.306,93.113,106.9]
[1645851549480,64.21,93.227,93.113,106.9]
[1645851549679,64.21,93.227,93.114,2.76621602]
[1645851549879,64.21,93.227,93.115,106.9]
[1645851550079,64.21,93.225,93.116,2.954524]
[1645851550280,64.21,93.223,93.131,106.9]
[1645851550481,64.21,93.219,93.132,26.26836606]
[1645851550680,64.21,93.219,93.133,2.51662084]
[1645851551581,64.21,93.223,93.133,2.51662084]
[1645851554881,64.21,93.223,93.133,2.99386606]
[1645851556884,1.6605254,93.222,93.132,23.7796]
[1645851557082,4.09046206,93.222,93.132,23.7796]
[1645851557283,2.42993666,93.221,93.132,23.7796]
[1645851557783,1.6605254,93.222,93.133,2.89773381]
[1645851558588,64.21,93.223,93.133,2.89773381]
[1645851566194,64.21,93.219,93.132,23.7796]
[1645851566395,64.21,93.217,93.132,23.7796]
[1645851566697,4.293,93.216,93.132,23.7796]
[1645851566896,64.21,93.215,93.132,23.7796]
[1645851567095,4.293,93.214,93.132,23.7796]
[1645851567494,64.21,93.213,93.132,23.7796]
[1645851568599,64.21,93.212,93.132,23.7796]
[1645851569601,64.21,93.211,93.132,23.7796]
[1645851569803,64.21,93.209,93.132,23.7796]
[1645851573825,64.21,93.209,93.133,2.27467339]
[1645851576028,64.21,93.209,93.132,23.7796]
[1645851577937,64.21,93.209,93.133,2.43757254]
[1645851579234,64.21,93.209,93.132,23.7796]
[1645851579439,68.503,93.209,93.132,23.7796]
[1645851579635,64.21,93.209,93.132,23.7796]
[1645851583638,70.93,93.209,93.132,23.7796]
[1645851586440,64.21,93.209,93.132,23.7796]
[1645851587244,64.21,93.209,93.133,2.8292794]
[1645851595047,57.49732826,93.21,93.133,2.8292794]
[1645851595247,57.49732826,93.21,93.134,2.86292427]
[1645851595449,4.293,93.239,93.134,2.86292427]
[1645851595450,64.21,93.249,93.135,106.9]
[1645851595652,64.21,93.247,93.15,122.41]
[1645851595850,64.21,93.247,93.151,50.84458114]
[1645851596047,64.21,93.247,93.152,109.64939814]
[1645851596247,64.21,93.247,93.153,3.04787268]
[1645851596548,45.72162651,93.246,93.155,2.74766194]
[1645851596747,45.72162651,93.246,93.17,122.41]
[1645851596947,45.72162651,93.246,93.173,2.93167758]
[1645851597346,64.21,93.245,93.174,15.42513766]
[1645851597546,87.9664,93.245,93.173,2.93167758]
[1645851597747,87.9664,93.245,93.155,15.42513766]
[1645851597748,64.21,93.241,93.155,15.42513766]
[1645851597953,64.21,93.239,93.11,15.51]
[1645851598148,1.71879558,93.236,93.112,2.49158262]
[1645851598347,4.293,93.235,93.112,2.49158262]
[1645851598549,16.108,93.21,93.112,2.49158262]
[1645851598748,64.21,93.207,93.112,2.49158262]
[1645851599350,64.21,93.205,93.112,2.49158262]
[1645851599550,64.21,93.203,93.112,2.49158262]
[1645851599751,1.81778208,93.202,93.112,2.49158262]
[1645851599950,64.21,93.2,93.112,2.49158262]
[1645851600354,4.293,93.199,93.112,2.49158262]
[1645851600853,80.3194,93.2,93.112,2.49158262]
[1645851603060,79.3194,93.2,93.112,2.49158262]
[1645851605161,79.3194,93.2,93.112,6.78458262]
[1645851605760,79.3194,93.2,93.112,2.49158262]
[1645851615800,24.7459,93.201,93.112,109.39158262]
[1645851616000,60.46372805,93.208,93.113,5.23536855]
[1645851616200,60.46372805,93.208,93.114,106.9]
[1645851616401,60.46372805,93.208,93.115,2.25029085]
[1645851616600,60.46372805,93.208,93.116,0.25]
[1645851616802,60.46372805,93.208,93.131,106.9]
[1645851617000,60.46372805,93.208,93.133,106.9]
[1645851617204,60.46372805,93.208,93.134,2.92001259]
[1645851617604,60.46372805,93.208,93.135,106.9]
[1645851617802,60.46372805,93.208,93.14,15.51]
[1645851618003,60.46372805,93.208,93.141,2.86846752]
[1645851621506,60.46372805,93.208,93.19,2.4337948]
[1645851623808,24.6737,93.225,93.19,2.4337948]
[1645851624210,64.21,93.249,93.19,2.4337948]
[1645851624418,23.9343,93.237,93.19,2.4337948]
[1645851625030,49.54501456,93.236,93.19,2.4337948]
[1645851626612,64.21,93.235,93.19,2.4337948]
[1645851628912,4.291,93.234,93.19,2.4337948]
[1645851630516,68.501,93.235,93.19,2.4337948]
[1645851632213,64.21,93.235,93.19,2.4337948]
[1645851637921,64.21,93.229,93.19,2.4337948]
[1645851639022,4.291,93.228,93.19,2.4337948]
[1645851639523,64.21,93.229,93.19,2.4337948]
[1645851639722,65.76384449,93.229,93.19,2.4337948]
[1645851639922,4.291,93.228,93.19,2.4337948]
[1645851643446,171.11,93.221,93.112,4.291]
[1645851643646,171.11,93.221,93.08,106.9]
[1645851643647,64.21,93.219,93.094,55.90834335]
[1645851643849,64.21,93.189,93.095,2.88579911]
[1645851644049,64.21,93.187,93.096,4.293]
[1645851644244,64.21,93.187,93.095,2.88579911]
[1645851645545,2.42759078,93.186,93.096,4.293]
[1645851646146,64.21,93.185,93.095,2.88579911]
[1645851646544,2.42759078,93.184,93.095,2.88579911]
[1645851648050,64.21,93.179,93.095,2.88579911]
[1645851648253,4.293,93.178,93.094,48.7146]
[1645851648557,1.82871581,93.176,93.094,48.7146]
[1645851648754,4.293,93.175,93.083,2.37311481]
[1645851648954,64.21,93.173,93.051,2.57607012]
[1645851649155,1.43387206,93.168,93.051,2.57607012]
[1645851649355,64.21,93.157,93.051,2.57607012]
[1645851649556,64.21,93.155,93.051,2.57607012]
[1645851649858,64.21,93.153,93.051,2.57607012]
[1645851650057,64.21,93.151,93.051,2.57607012]
[1645851650356,1.74466178,93.148,93.051,2.57607012]
[1645851650555,64.21,93.137,93.051,2.57607012]
[1645851650761,64.21,93.135,93.051,2.57607012]
[1645851650959,4.296,93.134,93.051,2.57607012]
[1645851651357,64.21,93.133,93.051,2.57607012]
[1645851651558,64.21,93.117,93.051,2.57607012]
[1645851653762,64.21,93.117,93.047,23.0272]
[1645851655963,66.66199915,93.117,93.047,23.0272]
[1645851656564,64.21,93.117,93.048,2.50663375]
[1645851656862,64.21,93.117,93.047,23.0272]
[1645851659365,50.28724832,93.118,93.047,23.0272]
[1645851659366,64.21,93.109,93.047,23.0272]
[1645851659565,69.73,93.109,93.047,23.0272]
[1645851660167,1.52724974,93.108,93.021,4.297]
[1645851660366,3.97924889,93.108,93.021,4.297]
[1645851660565,66.66199915,93.107,93.021,4.297]
[1645851660967,64.21,93.105,93.021,4.297]
[1645851661168,64.21,93.102,93.021,4.297]
[1645851661368,64.21,93.099,93.021,4.297]
[1645851661573,54.08171441,93.103,93.021,4.297]
[1645851661574,64.21,93.097,93.021,4.297]
[1645851661767,4.298,93.096,93.021,4.297]
[1645851661966,64.21,93.097,93.021,4.297]
[1645851662168,111.16256813,93.096,93.005,23.5787]
[1645851662370,64.21,93.069,93.005,23.5787]
[1645851662568,69.45,93.069,93.005,23.5787]
[1645851662771,64.21,93.067,93.005,23.5787]
[1645851662969,64.21,93.067,92.968,2.62732279]
[1645851663172,64.21,93.065,92.968,22.8127]
[1645851663373,64.21,93.063,92.969,2.30081045]
[1645851663571,64.21,93.061,92.969,2.30081045]
[1645851664274,1.84233546,93.058,92.968,22.8127]
[1645851664474,4.3,93.057,92.969,2.87733765]
[1645851664671,64.21,93.056,92.969,2.87733765]
[1645851664870,64.21,93.053,92.969,2.87733765]
[1645851665072,4.3,93.052,92.969,2.87733765]
[1645851665272,64.21,93.039,92.968,22.8127]
[1645851665476,64.21,93.037,92.968,22.8127]
[1645851666373,64.21,93.029,92.968,22.8127]
[1645851667174,64.21,93.029,92.943,2.47725121]
[1645851667377,64.21,93.029,92.944,24.18]
[1645851667581,64.21,93.017,92.944,24.18]
[1645851667775,64.21,93.017,92.945,2.35992898]
[1645851668277,64.21,93.017,92.944,24.18]
[1645851668476,72.3,93.017,92.945,3.11148844]
[1645851668675,64.21,93.009,92.913,27.63974146]
[1645851668886,64.21,93.007,92.914,2.72068252]
[1645851669076,64.21,93.005,92.914,2.72068252]
[1645851669279,64.21,93.003,92.914,2.72068252]
[1645851669680,4.301,93.002,92.914,2.72068252]
[1645851669876,64.21,93.001,92.914,2.72068252]
[1645851670079,4.303,93.0,92.914,2.72068252]
[1645851670479,64.21,92.989,92.914,2.72068252]
[1645851670779,64.21,92.987,92.914,2.72068252]
[1645851671181,33.89186939,92.987,92.914,2.72068252]
[1645851673482,50.50262558,92.988,92.914,2.72068252]
[1645851674507,50.50262558,92.988,92.915,2.86292427]
[1645851674804,50.50262558,92.988,92.92,15.51]
[1645851675007,50.50262558,92.988,92.921,2.76701104]
[1645851677713,50.50262558,92.988,92.922,2.86292427]
[1645851678509,50.50262558,92.988,92.921,2.76701104]
[1645851679014,50.50262558,92.988,92.914,2.45159204]
[1645851680313,64.21,92.987,92.913,24.611]
[1645851680514,64.21,92.979,92.913,24.611]
[1645851680713,4.303,92.978,92.913,24.611]
[1645851681114,64.21,92.977,92.913,24.611]
[1645851681312,4.303,92.976,92.913,24.611]
[1645851681514,64.21,92.975,92.913,24.611]
[1645851681715,64.21,92.973,92.913,24.611]
[1645851681915,4.303,92.972,92.879,2.42351815]
[1645851682314,2.44272704,92.971,92.879,2.42351815]
[1645851682520,55.86059409,92.959,92.879,2.42351815]
[1645851686220,25.53115373,92.959,92.879,2.42351815]
[1645851689126,64.21,92.958,92.879,2.42351815]
[1645851689327,66.65272704,92.958,92.872,26.35014869]
[1645851689528,64.21,92.956,92.872,26.35014869]
[1645851689931,2.44272704,92.955,92.872,26.35014869]
[1645851690430,16.1526,92.95,92.873,2.58481711]
[1645851697939,70.95772704,92.949,92.872,23.7836]
[1645851698139,48.73236339,92.929,92.872,23.7836]
[1645851698939,64.21,92.928,92.831,4.305]
[1645851699145,64.21,92.919,92.822,2.39775072]
[1645851699544,4.307,92.918,92.822,2.39775072]
[1645851699746,1.58148853,92.916,92.822,2.39775072]
[1645851699946,64.21,92.913,92.822,2.39775072]
[1645851700559,2.44272704,92.912,92.822,2.39775072]
[1645851701360,16.1604,92.91,92.822,2.39775072]
[1645851701561,16.1604,92.91,92.823,4.307]
[1645851704462,16.1604,92.91,92.824,2.86292427]
[1645851704664,16.1604,92.91,92.825,4.307]
[1645851705065,16.1604,92.91,92.825,7.16992427]
[1645851706065,16.1604,92.91,92.825,2.86292427]
[1645851708066,16.1604,92.91,92.826,4.307]
[1645851708268,16.1604,92.91,92.822,2.39775072]
[1645851711069,16.1604,92.91,92.822,6.70475072]
[1645851711471,16.1604,92.91,92.822,2.39775072]
[1645851717880,4.307,92.909,92.822,2.39775072]
[1645851718078,16.1604,92.91,92.822,2.39775072]
[1645851718479,43.71829192,92.914,92.823,2.86292427]
[1645851720182,43.71829192,92.914,92.823,5.27199871]
[1645851720580,43.71829192,92.914,92.824,2.86292427]
[1645851721580,43.71829192,92.914,92.832,2.63656416]
[1645851721780,43.71829192,92.914,92.84,15.51]
[1645851721979,43.71829192,92.914,92.841,23.0451]
[1645851722180,43.71829192,92.914,92.842,2.31299778]
[1645851722380,24.91049969,92.949,92.842,109.21299778]
[1645851722581,24.0844,92.955,92.851,106.9]
[1645851722884,24.0844,92.955,92.861,2.72390015]
[1645851723285,59.57792135,92.954,92.861,109.62390015]
[1645851723484,59.57792135,92.954,92.86,15.51]
[1645851723485,59.57792135,92.954,92.863,106.9]
[1645851723683,59.57792135,92.954,92.871,2.47543969]
[1645851723883,59.57792135,92.954,92.88,15.51]
[1645851724083,59.57792135,92.954,92.882,2.33032232]
[1645851724984,59.57792135,92.954,92.883,2.86292427]
[1645851728591,59.57792135,92.954,92.89,16.1439]
[1645851728792,59.57792135,92.954,92.891,2.94163144]
[1645851730596,59.57792135,92.954,92.893,3.0744865]
[1645851731198,16.146,92.99,92.894,2.86292427]
[1645851731397,16.146,92.99,92.895,24.9797]
[1645851731597,16.146,92.99,92.896,2.38992086]
[1645851731796,16.146,92.99,92.896,109.28992086]
[1645851731996,16.146,92.99,92.897,2.38965469]
[1645851732197,46.32316828,92.989,92.91,15.51]
[1645851732402,46.32316828,92.989,92.912,106.9]
[1645851732598,22.83049969,93.028,92.913,2.4647009]
[1645851732798,22.92436419,93.025,92.913,2.4647009]
[1645851732997,4.301,93.024,92.914,2.86292427]
[1645851733200,22.92436419,93.025,92.914,2.86292427]
[1645851733398,22.92436419,93.025,92.921,106.9]
[1645851733698,50.76879729,93.024,92.93,15.51]